Cogmind - Beta 16.1 @@@ ROGUE MODE // 2026.04.06 @ 17:12:23 Player: Folded_Phoenix Result: Destroyed by X-62 Marksman with Pulse Rifle Performance ------------- Evolutions (2) 1000 Regions Visited (5) 1000 Robots Destroyed (42) 210 Value Destroyed (1136) 1136 Prototype IDs (1) 20 Alien Tech Used (0) 0 Bonus (0) 0 TOTAL SCORE: 3366 Bonus ------- None Cogmind --------- Core Integrity 0/550 Matter 293/300 Energy 98/100 System Corruption 3% Temperature Cool (18) Movement Core (50) Location -8/Materials Parts ------- > --- POWER (1) -------- (None) > --- PROPULSION (4) --- (None) > --- UTILITY (4) ------ (None) > --- WEAPON (2) ------- (None) > --- INVENTORY (5) ---- Improved Sensor Array Targeting Computer Makeshift Cloaking Device Peak State ------------ > --- POWER ------------ Light Deuterium Engine > --- PROPULSION ------- Light Treads Light Treads Advanced Treads Advanced Treads > --- UTILITY ---------- Small Storage Unit Visual Processing Unit 0b10 Alert Chip Reactive Plating > --- WEAPON ----------- Beam Rifle Minigun > --- INVENTORY -------- Advanced Weight Redist. System Seismic Detector Targeting Computer Makeshift Transmission Jammer Makeshift Cloaking Device Hardlight Generator Hammer Makeshift Hammer [Rating: 30] Favorites ----------- Power Light Ion Engine Engine Light Ion Engine Power Core Light Nuclear Core Propulsion Armored Wheel Treads Advanced Treads Leg Aluminum Leg Wheel Armored Wheel Flight Unit Flight Unit Utility Small Storage Unit Device Advanced Weight Redist. System Storage Small Storage Unit Processor Visual Processing Unit Protection Reactive Plating Weapon Medium Laser Energy Gun Medium Laser Ballistic Gun Assault Rifle Impact Weapon Makeshift Hammer Build | -11 -10 -10 -10 -9 -8 ------- Run | Yrd Mat Min Exi Min Mat Slots Evolved 4 | . . . . . 4 Power . | . . . . . . Propulsion 2 | . . . . . 2 Utility 2 | . . . . . 2 Weapon . | . . . . . . Parts Attached 41 | 6 4 5 1 . 25 Power 7 | 1 . 1 . . 5 Engine 4 | 1 . . . . 3 Core 3 | . . 1 . . 2 Reactor . | . . . . . . Propulsion 16 | 2 2 2 . . 10 Treads 4 | . . . . . 4 Leg 3 | 2 . . . . 1 Wheel 2 | . 2 . . . . Hover . | . . . . . . Flight 7 | . . 2 . . 5 Utility 9 | 1 2 . . . 6 Device 4 | . . . . . 4 Storage 1 | 1 . . . . . Processor 2 | . 1 . . . 1 Hackware . | . . . . . . Protection 2 | . 1 . . . 1 Artifact . | . . . . . . Weapon 9 | 2 . 2 1 . 4 Energy Gun 4 | 1 . 1 . . 2 Energy Cannon . | . . . . . . Ballistic Gun 2 | 1 . . . . 1 Ballistic Cannon . | . . . . . . Launcher . | . . . . . . Special Weapon . | . . . . . . Impact Weapon 3 | . . 1 1 . 1 Slashing Weapon . | . . . . . . Piercing Weapon . | . . . . . . Special Melee Weapon . | . . . . . . Unidentified Prototypes 1 | . . . . . 1 Corrupted Parts 1 | . . . . . 1 System Corruption 3 | . . . . . 3 Parts Lost 22 | . 1 3 . . 18 Power 3 | . . 1 . . 2 Propulsion 8 | . . . . . 8 Utility 6 | . 1 . . . 5 Weapon 5 | . . 2 . . 3 Highest Loss Streak 6 | . 1 3 . . 6 To Critical Strikes . | . . . . . . Average Backups 5 | . 4 6 7 8 6 Power . | . . . . . . Propulsion . | . . 3 1 . . Utility 3 | . . 2 4 6 5 Weapon 1 | . 2 1 1 2 1 Tool/Special . | . . . . . . Unused Backups 13 | . 6 . 1 . 6 Power 1 | . 1 . . . . Propulsion 2 | . 1 . 1 . . Utility 6 | . 1 . . . 5 Weapon 4 | . 3 . . . 1 Tool/Special . | . . . . . . Average Slot Usage (%) 80 | . 95 83 72 71 70 Engine 6 | . 14 3 . . 3 Core 1 | . . 2 . . 2 Treads 3 | . . . . . 7 Leg 3 | . 8 . . . 1 Wheel 10 | . 19 24 . . . Flight 7 | . . 3 28 28 9 Device 3 | . . . . . 8 Storage 10 | . 14 14 14 14 6 Processor 8 | . 1 14 14 14 11 Protection 4 | . 8 . . . 4 Energy Gun 7 | . 14 7 . . 4 Ballistic Gun 6 | . 14 4 . . 3 Impact Weapon 5 | . . 8 15 14 6 Peak Build Rating 30 | 6 11 13 11 11 30 Average Rating 14 | 3 8 9 9 11 21 On Entrance 7 | . 6 11 7 11 11 Avg Prop Armor Cover (%) 4 | . . . . . 4 Naked Turns 1 | . . . . . 1 Heaviest Build 26 | 12 15 15 10 8 26 Greatest Support 84 | 20 24 24 8 8 84 Greatest Overweight (x) 6 | 3 1 . 1 . 6 Average Overweight (x) . | 1 . . . . . Largest Inventory Capacity 8 | 8 8 8 8 8 8 Average Capacity 7 | 7 8 8 8 8 7 Most Carried 8 | . 8 8 8 8 8 Average Carried 5 | . 5 6 7 8 6 Final Capacity 8 | 8 8 8 8 8 5 Final Carried 8 | . 8 7 8 8 3 Class Distribution -------------------- 92% | Mutant 4% | Scavenger-Sprinter Dominant Class ---------------- Mutant | -10/Materials Mutant | -10/Mines Mutant | -10/Exiles Mutant | -9/Mines Mutant | -8/Materials Resources | -11 -10 -10 -10 -9 -8 ----------- Run | Yrd Mat Min Exi Min Mat Matter Collected 872 | 167 247 68 . 10 380 Remotely . | . . . . . . Salvage Created 1448 | . 329 220 . . 899 Parts 69 | . 24 8 . . 37 Haulers Intercepted 2 | . 2 . . . . Recyclers Shooed 1 | . . . . . 1 Parts Field Recycled . | . . . . . . Retrieved Matter . | . . . . . . Parts Self-Destructed . | . . . . . . Prevented . | . . . . . . Parts Restored . | . . . . . . Kills | -11 -10 -10 -10 -9 -8 ------- Run | Yrd Mat Min Exi Min Mat Combat Hostiles Destroyed 35 | . 9 5 . . 21 Melee 8 | . . 1 . . 7 Guns 19 | . 9 2 . . 8 Classes Destroyed 9 | . 4 . . . 5 Worker 1 | . . . . . 1 Hauler 2 | . 2 . . . . Recycler 1 | . . . . . 1 Mechanic 1 | . . . . . 1 Watcher 2 | . 1 . . . 1 Swarmer 14 | . 6 . . . 8 Grunt 14 | . 3 5 . . 6 Sentry 6 | . . . . . 6 Hunter 1 | . . . . . 1 Best Kill Streak 6 | . 3 2 . . 6 Combat Bots Only 4 | . 3 2 . . 4 Max Kills in Single Turn 1 | . 1 1 . . 1 Gunslinging . | . . . . . . Exploded . | . . . . . . Melee 1 | . . 1 . . 1 Uniques/NPCs Destroyed . | . . . . . . Combat | -11 -10 -10 -10 -9 -8 -------- Run | Yrd Mat Min Exi Min Mat Hostile Shots Fired 343 | . 33 59 . 3 248 Missed 97 | . 10 17 . 1 69 Hits 246 | . 23 42 . 2 179 Projectile 246 | . 23 42 . 2 179 Critical Strikes 5 | . . . . . 5 Damage Taken 2927 | . 245 574 . 20 2088 Core 778 | . 53 151 . 10 564 Absorbed by Shields 184 | . . . . . 184 Ignored by Resistances 138 | . . . . . 138 Regen/Repaired (Parts) 15 | . . . . . 15 Core Remaining (%) 57 | 100 . . . 14 . Volleys Fired 85 | . 39 18 . . 28 Largest 2 | . 2 2 . . 2 Hottest 106 | . 70 106 . . 90 Shots Fired 154 | . 78 32 . . 44 Gun 154 | . 78 32 . . 44 Cannon . | . . . . . . Launcher . | . . . . . . Special . | . . . . . . Kinetic 73 | . 39 11 . . 23 Thermal 81 | . 39 21 . . 21 Explosive . | . . . . . . Electromagnetic . | . . . . . . Robot Hit Streak 9 | . 7 9 . . 7 Robot Miss Streak 3 | . 3 2 . . 2 Penetration Max . | . . . . . . Secondary Targets 3 | . . 1 . . 2 Max Gunslinging Chain 1 | . . 1 . . 1 Shots Hit Robots 145 | . 48 29 . . 68 Core Hits 50 | . 20 9 . . 21 Critical Kills 2 | . . 1 . . 1 Critical Parts Destroyed 4 | . . 1 . . 3 Critical Strikes 11 | . 2 3 . . 6 Burn 4 | . 2 1 . . 1 Smash 7 | . . 2 . . 5 Melee Attacks 73 | . . 10 . . 63 Impact 73 | . . 10 . . 63 Slashing . | . . . . . . Piercing . | . . . . . . Sneak Attacks 1 | . . . . . 1 Combat Hostiles . | . . . . . . Follow-up Attacks . | . . . . . . Damage Inflicted 3183 | . 624 496 . . 2063 Guns 1397 | . 624 276 . . 497 Cannons . | . . . . . . Explosions . | . . . . . . Melee 1786 | . . 220 . . 1566 Ramming . | . . . . . . Kinetic 678 | . 324 97 . . 257 Thermal 719 | . 300 179 . . 240 Explosive . | . . . . . . Electromagnetic . | . . . . . . Impact 1786 | . . 220 . . 1566 Slashing . | . . . . . . Piercing . | . . . . . . Highest Corruption 3 | . . . . . 3 Average Corruption 3 | . . . . . 3 Corruption Purged . | . . . . . . Corruption Blocked . | . . . . . . Effects 5 | . . . . . 5 Message Errors 1 | . . . . . 1 Matter Fused 1 | . . . . . 1 Heat Flow Errors 1 | . . . . . 1 Energy Discharges 1 | . . . . . 1 Data Loss (minor) 1 | . . . . . 1 Overload Shots . | . . . . . . Overflow Damage 334 | . . 21 . . 313 Projectiles . | . . . . . . Explosions . | . . . . . . Melee 334 | . . 21 . . 313 Knockbacks 2 | . . . . . 2 Impact 2 | . . . . . 2 Kinetic . | . . . . . . Secondary . | . . . . . . Self-Inflicted Damage . | . . . . . . Shots . | . . . . . . Rammed 1 | . . . . . 1 Targets Rammed 1 | . . . . . 1 Kicked . | . . . . . . Crushed . | . . . . . . Highest Temperature 282 | . 135 282 . . 248 Average Temperature 73 | . 33 102 . . 105 Received Heat Transfer 1194 | . 75 327 . 12 780 Effects 3 | . . 2 . . 1 Energy Bleed 1 | . . . . . 1 Interference 2 | . . 2 . . . Siege Activations . | . . . . . . Martial Activations . | . . . . . . Shielding Activations . | . . . . . . Robots Disrupted . | . . . . . . Combat Hostiles . | . . . . . . Robots Corrupted 8 | . . 1 . . 7 Combat Hostiles 7 | . . 1 . . 6 Parts Fried 9 | . . . . . 9 Impact Corruptions 17 | . . 1 . . 16 Robots Melted 1 | . . 1 . . . Combat Hostiles 1 | . . 1 . . . Parts Melted 5 | . 2 1 . . 2 Heat Transferred 2294 | . 1036 592 . . 666 Parts Sabotaged . | . . . . . . Parts Stolen . | . . . . . . Parts Stripped . | . . . . . . Power Chain Reactions . | . . . . . . Alert | -11 -10 -10 -10 -9 -8 ------- Run | Yrd Mat Min Exi Min Mat Maximum Alert Level . | . . . . . . Low Security (%) 100 | 100 100 100 . 100 100 Level 1 . | . . . . . . Level 2 . | . . . . . . Level 3 . | . . . . . . Level 4 . | . . . . . . Level 5 . | . . . . . . High Security . | . . . . . . Max Security . | . . . . . . Peak Influence 85 | . 80 45 . . 85 Initial 15 | . . 15 . . . Average 30 | . 40 13 . . 31 Influence Increases 988 | . 276 165 . . 547 Destroy 0b10 Robot/C 636 | . 180 100 . . 356 Destroy 0b10 Robot/NC 32 | . 15 . . . 17 Destroy Leader 152 | . 36 20 . . 96 Successful Hack 24 | . . . . . 24 Disable Machine 12 | . . . . . 12 Partial Spotted 15 | . . . . . 15 Lose Combat Pursuer 117 | . 45 45 . . 27 Influence Decreases 988 | . 236 160 45 . 547 Entered New Map 70 | . . 25 45 . . Time Decay 673 | . 226 105 . . 342 Lost Part 192 | . 10 30 . . 152 Purge Threat 53 | . . . . . 53 Squads Dispatched 4 | . . . . . 4 Investigation 1 | . . . . . 1 Extermination . | . . . . . . Reinforcement 3 | . . . . . 3 Assault . | . . . . . . Garrison . | . . . . . . Intercept . | . . . . . . Searches Triggered . | . . . . . . Construction Impeded . | . . . . . . Haulers Reinforced . | . . . . . . Active Scanning Responses . | . . . . . . Cargo Convoy Interrupts . | . . . . . . Stealth | -11 -10 -10 -10 -9 -8 --------- Run | Yrd Mat Min Exi Min Mat Distress Signals 2 | . 2 . . . . Communications Jammed . | . . . . . . Distress Signals . | . . . . . . Times Spotted 67 | . 19 8 . 5 35 Peak Tracking Total 6 | . 6 3 . 5 6 Tactical Retreats 6 | . 3 1 . . 2 Traps | -11 -10 -10 -10 -9 -8 ------- Run | Yrd Mat Min Exi Min Mat Traps Triggered . | . . . . . . Indirectly . | . . . . . . Trap Hack Attempts . | . . . . . . Triggered . | . . . . . . Disarmed 1 | . 1 . . . . Reprogrammed . | . . . . . . Reused . | . . . . . . Traps Extracted . | . . . . . . Installed . | . . . . . . Triggered . | . . . . . . Machines | -11 -10 -10 -10 -9 -8 ---------- Run | Yrd Mat Min Exi Min Mat Machines Disabled 1 | . . . . . 1 Max in Single Turn 1 | . . . . . 1 Machines Repaired . | . . . . . . Machines Dismantled . | . . . . . . Machines Sabotaged . | . . . . . . Overloaded Fab Kills . | . . . . . . Hacking | -11 -10 -10 -10 -9 -8 --------- Run | Yrd Mat Min Exi Min Mat Machines Accessed 12 | . 4 . . . 8 Terminals 7 | . 2 . . . 5 Fabricators . | . . . . . . Repair Stations 2 | . 1 . . . 1 Recycling Units 2 | . 1 . . . 1 Scanalyzers 1 | . . . . . 1 Garrison Access . | . . . . . . Total Hacks 36 | . 9 . . . 27 Successful 18 | . 5 . . . 13 Failed 17 | . 4 . . . 13 Catastrophic 3 | . . . . . 3 Database Lockouts 1 | . . . . . 1 Manual 5 | . 2 . 2 . 1 Terminals 22 | . 6 . . . 16 Fabricators . | . . . . . . Repair Stations 4 | . 1 . . . 3 Recycling Units 6 | . 2 . . . 4 Scanalyzers 4 | . . . . . 4 Garrison Access . | . . . . . . Terminal Hacks 11 | . 2 . . . 9 Robot Analysis 1 | . . . . . 1 Emergency Access Points 1 | . . . . . 1 Alert Level 1 | . . . . . 1 Unreport Threat 1 | . . . . . 1 Disarm Traps 1 | . 1 . . . . Surveillance Status 1 | . . . . . 1 Transport Status 2 | . 1 . . . 1 Reinforcement Status 1 | . . . . . 1 Zone Layout 2 | . . . . . 2 Fabricator Hacks . | . . . . . . Repair Station Hacks 3 | . 1 . . . 2 Scan Component 2 | . 1 . . . 1 Repair 1 | . . . . . 1 Recycling Unit Hacks 2 | . 1 . . . 1 Report Inventory 1 | . . . . . 1 Retrieve Components 1 | . 1 . . . . Scanalyzer 1 | . . . . . 1 Retrieve Study 1 | . . . . . 1 Garrison Access Hacks . | . . . . . . Unauthorized Hacks 1 | . 1 . . . . Terminals 1 | . 1 . . . . Operators 1 | . 1 . . . . Fabricators . | . . . . . . Repair Stations . | . . . . . . Recycling Units . | . . . . . . Scanalyzers . | . . . . . . Garrison Access . | . . . . . . Data Cores Recovered . | . . . . . . Used . | . . . . . . Hacking Detections 12 | . 4 . . . 8 Full Trace Events 1 | . . . . . 1 Feedback Events . | . . . . . . Feedback Blocked . | . . . . . . Robot Schematics Acquired . | . . . . . . Robots Built . | . . . . . . Authchips . | . . . . . . Time . | . . . . . . Total Robot Build Rating . | . . . . . . Part Schematics Acquired . | . . . . . . Parts Built . | . . . . . . Authchips . | . . . . . . Time . | . . . . . . Total Part Build Rating . | . . . . . . Part Studies Acquired 1 | . . . . . 1 Parts Repaired 1 | . . . . . 1 Time 26 | . . . . . 26 Parts Recycled . | . . . . . . Recycled Matter . | . . . . . . Retrieved Matter . | . . . . . . Retrieved Components . | . . . . . . Parts Scanalyzed . | . . . . . . Part Schematics Acquired . | . . . . . . Parts Damaged . | . . . . . . Bothacking | -11 -10 -10 -10 -9 -8 ------------ Run | Yrd Mat Min Exi Min Mat Used RIF Installer . | . . . . . . Robots Hacked . | . . . . . . Non-combat . | . . . . . . Combat . | . . . . . . Robot Hacks Applied . | . . . . . . Relay Couplers Released . | . . . . . . Fabnet Peak Effective % . | . . . . . . Robots Rewired . | . . . . . . Allies Hacked . | . . . . . . Hacks Repelled . | . . . . . . Allies | -11 -10 -10 -10 -9 -8 -------- Run | Yrd Mat Min Exi Min Mat Total Allies . | . . . . . . Largest Group . | . . . . . . Highest-Rated Group . | . . . . . . Highest-Rated Ally . | . . . . . . Total Orders . | . . . . . . Ally Attacks . | . . . . . . Total Damage . | . . . . . . Kills . | . . . . . . Allies Corrupted . | . . . . . . Allies Melted . | . . . . . . Intel | -11 -10 -10 -10 -9 -8 ------- Run | Yrd Mat Min Exi Min Mat Active Infowar (turns) 921 | . 88 318 161 21 333 Optics 921 | . 88 318 161 21 333 Robot Analysis Total 1 | . . . . . 1 Derelict Logs Recovered 2 | . . 1 . 1 . Drone Launches . | . . . . . . Drone Recoveries . | . . . . . . Exploration | -11 -10 -10 -10 -9 -8 ------------- Run | Yrd Mat Min Exi Min Mat Turns Passed 2026 | 55 632 318 161 21 839 Spaces Moved 1727 | 35 469 298 384 53 488 Core 36 | 20 . . . . 16 Treads 148 | . . . . . 148 Legs 179 | 15 117 . . . 47 Wheels 553 | . 352 201 . . . Hover . | . . . . . . Flight 811 | . . 97 384 53 277 Fastest Speed 31 | 50 90 37 37 37 31 Average Speed 80 | 134 97 72 40 37 102 Slowest Speed 580 | 200 120 90 117 37 580 Overloaded Moves . | . . . . . . Propulsion Burnouts . | . . . . . . Robots Hopped 2 | . . . 1 1 . Potential Cave-ins . | . . . . . . Cave-ins Triggered . | . . . . . . Exploration Rate (%) 49 | 4 66 58 89 19 61 Regions Visited 5 Branch Regions 3 Pre-discovered Areas . | . . . . . . Known Exits Taken . | . . . . . . Unknown Exits Taken 5 | 1 1 1 1 1 . Scrap Searched 3 | . . 2 . 1 . Spaces Dug . | . . . . . . Terrain Destroyed . | . . . . . . Melee . | . . . . . . Projectile . | . . . . . . AOE . | . . . . . . Terrain Rammed . | . . . . . . Walls Destroyed . | . . . . . . Machines Disabled . | . . . . . . Actions | -11 -10 -10 -10 -9 -8 --------- Run | Yrd Mat Min Exi Min Mat Total 2101 | 40 567 349 390 52 703 Wait 122 | . 36 16 . 1 69 Move 1718 | 34 468 297 381 50 488 Hop 2 | . . . 1 1 . Pick Up 27 | . 14 1 3 . 9 Fast Attach 23 | 6 2 . 1 . 14 Attach 11 | . . 2 . . 9 Detach 2 | . . . 1 . 1 Swap 15 | . 2 3 . . 10 Drop 22 | . 6 2 3 . 11 Fire 85 | . 39 18 . . 28 Melee 73 | . . 10 . . 63 Ram 1 | . . . . . 1 Kick . | . . . . . . Crush . | . . . . . . Escape Stasis . | . . . . . . Rewire . | . . . . . . Trap . | . . . . . . Miscellaneous . | . . . . . . Route ------- -11/Scrapyard -10/Materials (discovered 3 exits: [*Mat] / [*Min x2]) -10/Mines (discovered 2 exits: [*Mat] / *Exi) -10/Exiles -9/Mines -8/Materials History --------- Turn | Location | Event 43 | -11/Scrapyard | Discovered new exit (range 12) 56 | -11/Scrapyard | Entered Materials 68 | -10/Materials | Discovered new exit (range 11) 307 | -10/Materials | Build established: Mutant 318 | -10/Materials | Discovered new exit (range 4) 583 | -10/Materials | Discovered new exit (range 15) 688 | -10/Materials | Entered Mines 712 | -10/Mines | Discovered new exit (range 12) 812 | -10/Mines | Core integrity fell below 50% 852 | -10/Mines | Learned Materials garrison access intel 854 | -10/Mines | Lost 3 parts (1p2w) 971 | -10/Mines | Core integrity fell below 20% 1005 | -10/Mines | Deemed a non-threat by the Exiles lab entrance 1005 | -10/Mines | Discovered new exit (range 5) 1006 | -10/Mines | Entered Exiles 1006 | -10/Exiles | Found Exiles lab destroyed 1049 | -10/Exiles | Opened EX-Vault 1050 | -10/Exiles | Found Prototype Processor 1162 | -10/Exiles | Discovered new exit (range 15) 1167 | -10/Exiles | Entered Mines 1168 | -9/Mines | Assembled infested the area 1169 | -9/Mines | Learned Materials emergency access door positions 1173 | -9/Mines | Assisted by a Guerilla fighting off Assembled 1186 | -9/Mines | Discovered new exit (range 7) 1188 | -9/Mines | Entered Materials 1188 | -8/Materials | Evolved 4 slots: Propulsion x2, Utility x2 1190 | -8/Materials | Loaded intel: 1 garrison access location 1304 | -8/Materials | Lost 4 parts (1p2n1u) 1320 | -8/Materials | Identified 0b10 Alert Chip 1556 | -8/Materials | Lost 3 parts (1n1u1w) 1571 | -8/Materials | Core integrity fell below 50% 1699 | -8/Materials | Central database locked down 1777 | -8/Materials | Repaired Flight Unit+ 1851 | -8/Materials | Lost 6 parts (1p1n2u2w) 1992 | -8/Materials | Core integrity fell below 20% 2026 | -8/Materials | Released all parts (6) 2027 | -8/Materials | Destroyed by X-62 Marksman with Pulse Rifle Last Messages --------------- Wheel fried. M-13 Machinist destroyed. K-01 Serf collects debris. O-16 Technician: "IFF HANDSHAKE FAILED. SECURING TERMINAL." Penetrated by Slug. Terminal disabled. ALERT: Hostiles spotted, dispatching reinforcements to Terminal M004. Penetrated by Slug. Reactive Plating destroyed. Repair Station disabled. Flight Unit+ destroyed. Released Hardlight Generator. Released Aluminum Leg. Released Imp. Ion Engine. Released 0b10 Alert Chip. Released Adv. Weight Redist. System. Released Flail. System corrupted: Matter fused (-7). Map ----- +----------------------------------------------------+ | | | | | ??????????????????????????????????????????????? | | ??????????????????????????????????????????????? | | ??????????????????????????????????????????????? | | ??????????????????????????????????????????????? | | ??????????????????????????????????????????????? | | ??????????????????????????????????????????????? | | ??????????????????????????????????????????????? | | ??????????????????????????????????????????????? | | ??????????????????????????????????????????????? | | ??????????????????????????????????????????????? | | ?????????????????#####????????????????????????? | | ??????????????? # ###+####???????????????? | | ?????????????? ######??????????? | | ?????????????? #??????????? | | ?????????????? #### #??????????? | | ?????????????????# ##### ##??# #??????????? | | ?????????????????##????????# #???# #??????????? | | ??????????????????# ???????# #???#%#??????????? | | ??????????????????# ???#####+##### #??????????? | | ??????????????????# ??# ## #??????????? | | ??????????????????# ??# """ ## #??????????? | | ??????????????????# Y?# """ ## #??????????? | | ?????????????????## ##gx"""g ## #??????????? | | ?????????????????# @; =!* ## #??????????? | | ??????????# # ! """## #????#?????? | | ??????? H x R"##%#??? ####??? | | ????????### # ""## #??? #??? | | ??????????# #### # ##%#?? #??? | | ??????????# ?????#################+#?? !#??? | | ???????????????????????# ! #? #??? | | ???????????????????????# #? #??? | | ???????????????????????# !!! # [[[#??? | | ???????????????????????# !!! """ # [[[#??? | | ???????????????????????# !!! """ + [[ #??? | | ???????????????????????# """ # #??? | | ???????????????????????#! # #??? | | ???????????????????????#########+###? =#??? | | ??????????????????############ ###+######## | | ????????????????? | | ????????????????? | | ????????????????? | | ????????????????? #/######## | | ??????????????????############# #? ?????? | | ????????????????????# [ # #?? ????? | | ????????????????????# !#% #??? ???? | | ????????????????????# ! !! !%+ #???? "??? | | ????????????????????# !! =#[ #????? ??? | | ????????????????????#""" ! # #????????? | +----------------------------------------------------+ Best States ------------- Heat Dissipation 31 Energy Generation 14 Energy Capacity 265 Matter Stores 300 Matter Capacity 300 Sight Range 18 Terrain Scan Density 10 Additional Mass Support 9 Armor Coverage 150 Resistance: KI 20 Evasion (%) 71 Recoil Reduction 4 Item Schematics ----------------- None Robot Schematics ------------------ None Fabricated ------------ Nothing Repaired ---------- Flight Unit | 25% | -8/Materials Studied --------- Flight Unit | -8/Materials | Hacked Alien Tech Used ----------------- None Achievements -------------- Heavy Suspicion Luggage Code Spot Them First Challenges ------------ None Game ------ Seed SalvagingExperimentalBiocell Manual? 0 Play Time 00:32:33 Cumulative 17.6 hours Start 2026.04.06 @ 16:42:13 End 2026.04.06 @ 17:12:23 Sessions 1 Manual Loads 0 Difficulty Rogue Special Mode None Game No. 25 Rogue 25 Adventurer 0 Explorer 0 Win Type - Total 0 Types 0/0/0/0/0/0/0/0/0/0 Lore% 14 Gallery% 22 Achievement% 14 Wizard Run 0 Options --------- Layout 1 ASCII 0 Keyboard 0 Movement Mouse Keybinds 0 Fullscreen 1 Font 24/Smallcaps Map View 50x35 Zoom Use 0% Tactical HUD 0 Map Filters NONE Filters NONE Steam 1 RUN: ab2dea5e-06b2-4124-87ae-329332186147